bitfinex/quotes_ETHUSD_20251028
["timestamp","ask_amount","ask_price","bid_price","bid_amount"]
[1761669273171,0.13100001,4118.4,4118.3,2.42818638]
[1761669273778,0.13100001,4118.4,4118.2,2.276]
[1761669274264,0.13100001,4118.4,4117.9,2.272]
[1761669274470,0.1208,4118.0,4117.9,4.70041411]
[1761669274872,0.1208,4118.0,4117.9,2.272]
[1761669275241,2.54917827,4118.0,4117.3,0.002]
[1761669275472,2.42832362,4118.1,4117.4,4.69971114]
[1761669275658,2.42836834,4118.0,4117.4,4.69971114]
[1761669275974,0.1208,4117.4,4117.3,0.002]
[1761669280411,0.1208,4117.4,4117.3,2.43077613]
[1761669280610,0.1208,4117.4,4117.3,4.69877613]
[1761669281298,2.42822916,4118.3,4117.6,2.42859443]
[1761669281299,0.1208,4117.7,4117.6,2.42859443]
[1761669281709,0.1208,4117.7,4117.4,2.42871715]
[1761669281896,0.1208,4117.7,4117.4,2.4286794]
[1761669282095,0.1208,4117.7,4117.5,2.42863457]
[1761669282420,0.12,4117.7,4117.6,2.42859918]
[1761669283714,0.12,4117.7,4117.3,2.27]
[1761669283889,0.12,4117.7,4117.3,0.002]
[1761669284091,0.12,4117.7,4117.4,2.265]
[1761669284719,0.25483955,4117.7,4117.3,0.002]
[1761669284886,2.42859918,4117.6,4117.3,0.002]
[1761669285215,2.42866632,4117.5,4117.3,0.002]
[1761669286091,2.42859918,4117.6,4117.3,0.002]
[1761669286297,2.42852177,4117.8,4117.3,0.002]
[1761669286518,2.91422929,4117.7,4117.3,0.002]
[1761669287013,2.42868172,4117.5,4117.3,0.002]
[1761669287324,2.42871715,4117.4,4117.3,0.002]
[1761669290227,0.48568851,4117.7,4117.3,0.002]
[1761669290429,2.261,4117.9,4117.3,0.002]
[1761669290615,2.42865333,4117.6,4117.3,0.002]
[1761669290816,2.261,4117.9,4117.3,0.002]
[1761669291036,2.42871715,4117.4,4117.3,0.002]
[1761669294345,1.5552,4117.7,4117.3,0.002]
[1761669294549,0.001,4117.9,4117.3,0.002]
[1761669295113,0.001,4117.9,4117.6,2.42859635]
[1761669295317,0.001,4117.9,4117.3,0.002]
[1761669296352,2.42857933,4117.7,4117.3,0.002]
[1761669296511,0.001,4117.9,4117.3,0.002]
[1761669296919,2.42871715,4117.4,4117.3,0.002]
[1761669297729,2.91222497,4117.4,4117.3,0.002]
[1761669299118,0.48350782,4117.4,4117.3,0.002]
[1761669299323,2.4286337,4117.6,4117.3,0.002]
[1761669299753,0.001,4117.9,4117.3,0.002]
[1761669300418,2.42871715,4117.4,4117.3,0.002]
[1761669303834,0.001,4117.9,4117.3,0.002]
[1761669304178,0.1208,4117.4,4117.3,0.002]
[1761669306450,0.001,4117.9,4117.3,2.8997646]
[1761669306658,0.1218,4117.9,4117.4,2.42870014]
[1761669306861,0.0002,4117.9,4117.8,2.42848122]
[1761669307036,0.0002,4117.9,4117.8,4.68748122]
[1761669307548,0.0002,4117.9,4117.8,20.83818751]
[1761669307873,0.0002,4117.9,4117.8,23.19473281]
[1761669308273,0.0002,4117.9,4117.8,22.78922881]
[1761669308473,0.0002,4117.9,4117.8,23.65229301]
[1761669308643,0.0002,4117.9,4117.8,24.05779701]
[1761669309371,0.0002,4117.9,4117.8,23.19473281]
[1761669309836,0.0002,4117.9,4117.8,8.72002652]
[1761669310041,0.0002,4117.9,4117.8,2.54928122]
[1761669310238,0.0002,4117.9,4117.3,1.7615221]
[1761669310239,0.0002,4117.9,4117.4,2.259]
[1761669310434,0.0002,4117.9,4117.6,2.42855626]
[1761669310657,0.0002,4117.9,4117.4,2.3798]
[1761669310935,0.0002,4117.9,4117.4,2.90584508]
[1761669311141,0.0002,4117.9,4117.8,2.42848122]
[1761669311878,0.0002,4117.9,4117.7,0.1208]
[1761669312073,0.0002,4117.9,4117.8,2.42848122]
[1761669313186,0.0002,4117.9,4117.8,3.0753263]
[1761669313366,0.0002,4117.9,4117.8,2.42848122]
[1761669313742,0.0002,4117.9,4117.8,2.99095106]
[1761669314059,0.01020001,4118.4,4117.9,2.83392625]
[1761669314378,0.01020001,4118.4,4118.3,5.15653546]
[1761669314853,0.01020001,4118.4,4118.3,4.50969038]
[1761669315053,0.01020001,4118.4,4118.3,5.15653546]
[1761669315252,0.01020001,4118.4,4118.3,2.54898638]
[1761669315475,0.01020001,4118.4,4118.3,4.80798638]
[1761669317485,0.01020001,4118.4,4118.3,6.24238638]
[1761669317811,0.01020001,4118.4,4118.3,6.76869038]
[1761669318164,0.001,4118.8,4118.6,2.83351351]
[1761669318368,0.001,4118.8,4118.6,6.95840848]
[1761669318599,0.001,4118.8,4118.6,7.92616573]
[1761669319604,0.001,4118.8,4118.6,8.78567717]
[1761669320412,0.001,4118.8,4118.6,8.78518062]
[1761669320706,0.01,4121.4,4119.3,18.45750321]
[1761669320707,1e-08,4119.4,4119.3,18.45750321]
[1761669320906,0.01,4121.4,4120.3,4.38771174]
[1761669321123,0.01,4121.4,4120.3,20.71491403]
[1761669321281,0.01,4121.4,4119.6,0.64389502]
[1761669321481,2.43641815,4121.4,4119.7,2.258]
[1761669321683,0.01,4121.4,4119.7,2.258]
[1761669322007,2.47670494,4120.9,4119.8,3.98249847]
[1761669322305,2.47670494,4120.9,4120.1,2.42707682]
[1761669322490,0.05,4120.9,4120.3,2.42700774]
[1761669323194,0.05,4120.9,4120.3,2.45127781]
[1761669323386,0.05,4120.9,4120.3,2.42700774]
[1761669324613,0.05,4120.9,4120.2,2.258]
[1761669324940,0.05,4120.9,4120.2,4.68505245]
[1761669324941,2.47666168,4120.9,4120.2,4.68505245]
[1761669325121,0.05,4120.9,4120.2,2.258]
[1761669325311,0.05,4120.9,4120.2,4.68506659]
[1761669325712,2.47666004,4120.9,4120.2,2.258]
[1761669326233,2.42673047,4120.8,4120.2,2.258]
[1761669326459,0.05,4120.9,4120.2,2.258]
[1761669326602,2.42677486,4120.7,4120.2,2.258]
[1761669326950,0.25367749,4120.4,4119.9,2.257]
[1761669327098,0.25367749,4120.4,4120.1,2.42707602]
[1761669327099,0.01,4120.4,4120.1,2.42707602]
[1761669327438,0.01,4120.4,4119.9,2.257]
[1761669327809,0.01,4120.4,4119.9,4.68423274]
[1761669328141,0.01,4120.4,4120.3,2.42700774]
[1761669328352,0.01,4120.4,4120.3,2.257]
[1761669329495,2.69270607,4120.4,4120.3,2.257]
[1761669329818,0.1208,4120.3,4119.9,2.257]
[1761669330022,0.1208,4120.1,4119.8,2.257]
[1761669331409,0.12,4120.1,4119.8,2.257]
[1761669331613,2.42723239,4120.0,4119.5,2.257]
[1761669331797,0.1208,4119.8,4119.6,2.42737923]
[1761669331998,0.011,4120.4,4119.7,14.62426634]
[1761669332320,0.011,4120.4,4120.3,2.42700774]
[1761669332536,0.011,4120.4,4120.3,4.70827781]
[1761669332737,0.011,4120.4,4120.3,4.68400774]
[1761669336344,0.011,4120.4,4120.3,21.26897808]
[1761669336653,0.051,4120.9,4120.4,2.42694883]
[1761669336851,0.051,4120.9,4120.8,17.05097959]
[1761669337031,0.051,4120.9,4120.8,20.86317959]
[1761669337858,0.051,4120.9,4120.8,2.42671325]
[1761669338022,0.051,4120.9,4120.8,2.257]
[1761669338356,0.051,4120.9,4120.8,4.68371325]
[1761669338557,0.051,4120.9,4120.8,4.95730428]
[1761669338755,0.051,4120.9,4120.8,2.257]
[1761669339056,0.051,4120.9,4120.8,4.68371325]
[1761669339260,0.051,4120.9,4120.8,2.257]
[1761669339844,0.051,4120.9,4120.8,4.68371325]
[1761669342075,0.051,4120.9,4120.8,4.80451325]
[1761669342275,0.051,4120.9,4120.8,5.5276469]
[1761669344771,0.051,4120.9,4120.8,20.15191324]
[1761669346380,0.051,4120.9,4120.8,21.20132718]
[1761669346582,0.051,4120.9,4120.8,2.3778]
[1761669346960,0.051,4120.9,4120.6,2.42682463]
[1761669347175,0.051,4120.9,4120.5,2.256]
[1761669348072,0.1208,4120.8,4120.5,2.256]
[1761669348979,0.051,4120.9,4120.5,2.256]
[1761669349178,2.47765883,4120.9,4120.5,2.256]
[1761669349380,0.24776588,4120.8,4120.5,2.256]
[1761669349964,0.051,4120.9,4120.6,2.42682832]
[1761669350169,0.1208,4120.8,4120.6,2.42682832]
[1761669350369,0.1208,4120.8,4120.5,2.256]
[1761669351079,0.1208,4120.6,4120.5,2.256]
[1761669351407,2.42688994,4120.5,4120.3,0.002]
[1761669351579,0.405504,4120.2,4119.1,0.65794436]
[1761669351900,0.405504,4119.3,4119.1,0.01]
[1761669352203,6.99595025,4119.2,4119.1,1e-08]
[1761669354576,2.83351351,4118.6,4118.5,1e-08]
[1761669354908,21.26897985,4118.6,4118.5,1e-08]
[1761669355933,19.01217985,4118.6,4118.5,1e-08]
[1761669356143,4.38791351,4118.6,4118.5,1e-08]
[1761669356350,7.32549763,4118.6,4118.5,1e-08]
[1761669356642,4.68400951,4118.6,4118.5,1e-08]
[1761669356935,6.23920951,4118.6,4118.5,1e-08]
[1761669357112,1.5552,4118.6,4118.5,1e-08]
[1761669357721,3.98320951,4118.6,4118.5,1e-08]
[1761669357924,4.78703446,4118.6,4118.5,1e-08]
[1761669358835,7.04303446,4118.6,4118.5,1e-08]
[1761669359206,4.38153046,4118.6,4118.5,1e-08]
[1761669359405,6.63753046,4118.6,4118.5,1e-08]
[1761669359634,6.58753046,4118.6,4118.5,1e-08]
[1761669360141,1.5052,4118.6,4118.5,1e-08]
[1761669360537,0.3515904,4119.2,4118.5,1e-08]
[1761669360751,2.42758089,4119.4,4118.5,1e-08]
[1761669361041,2.42700774,4120.3,4118.5,0.02428069]
[1761669361255,0.01,4120.4,4119.5,2.42745667]
[1761669361455,0.1208,4119.8,4119.1,0.1208]
[1761669361752,0.01,4120.4,4119.3,14.62426634]
[1761669361954,0.01,4120.4,4119.5,0.405504]
[1761669362152,0.01,4120.4,4120.3,0.1208]
[1761669362353,0.01,4120.4,4119.4,1.46485429]
[1761669362658,0.1208,4120.3,4120.2,2.42706664]
[1761669363220,0.01,4120.4,4120.3,2.42700774]
[1761669364042,0.01,4120.4,4120.3,4.53278181]
[1761669364229,0.051,4120.9,4120.3,4.53278181]
[1761669364230,0.051,4120.9,4120.4,2.83245283]
[1761669364532,0.051,4120.9,4120.8,0.1208]
[1761669365255,0.051,4120.9,4120.8,2.80226809]
[1761669366229,0.051,4120.9,4120.8,5.05826809]
[1761669368026,0.051,4120.9,4120.8,2.3768]
[1761669368357,0.051,4120.9,4120.8,4.80351325]
[1761669368517,0.051,4120.9,4120.8,2.3768]
[1761669368954,0.051,4120.9,4120.8,4.80351325]
[1761669369155,0.051,4120.9,4120.8,2.3768]
[1761669369353,0.051,4120.9,4120.5,2.42688848]
[1761669369552,0.1718,4120.9,4120.6,2.45109555]
[1761669369739,0.051,4120.9,4120.6,2.42683104]
[1761669369944,0.051,4120.9,4120.5,3.41408773]
[1761669370140,0.051,4120.9,4120.5,0.98721459]
[1761669370359,0.051,4120.9,4120.5,0.1208]
[1761669370724,0.051,4120.9,4120.6,2.42683104]
[1761669370947,0.051,4120.9,4120.5,0.1208]
[1761669371280,0.1208,4120.8,4120.3,2.255]
[1761669371488,0.1208,4120.8,4120.1,0.1208]
[1761669371757,0.1208,4120.5,4120.0,2.42713688]
[1761669371966,0.1208,4120.5,4119.9,2.42723971]
[1761669372164,0.1208,4120.5,4119.8,0.1208]
[1761669372336,0.051,4120.9,4119.4,2.42753799]
[1761669372541,0.1208,4119.8,4119.1,0.1328]
[1761669372849,0.051,4120.9,4119.1,0.1328]
[1761669372850,0.405504,4120.2,4119.1,0.012]
[1761669373039,0.405504,4120.0,4119.1,0.012]
[1761669373240,2.42746721,4119.6,4119.1,0.012]
[1761669373461,2.42749504,4119.5,4119.1,0.012]
[1761669373879,2.255,4119.8,4119.1,0.012]
[1761669374191,2.42765585,4119.2,4119.1,0.012]
[1761669374362,4.62389864,4119.2,4119.1,0.012]
[1761669374984,1.5552,4119.2,4119.1,0.012]
[1761669375184,3.98285585,4119.2,4119.1,0.012]
[1761669375752,1.5552,4119.2,4119.1,0.012]
[1761669376386,0.1208,4119.3,4119.1,0.012]
[1761669378250,0.1208,4119.3,4119.1,2.43971281]
[1761669378448,0.1208,4119.3,4119.1,0.25597128]
[1761669378683,0.1208,4119.3,4119.1,0.012]
[1761669379864,1.5552,4120.5,4119.1,0.012]
[1761669380068,0.1208,4119.3,4119.1,0.012]
[1761669380473,2.255,4120.4,4119.1,0.012]
[1761669380474,2.42736314,4119.7,4119.1,0.012]
[1761669380675,1.5552,4119.9,4119.1,0.012]
[1761669380875,0.15552,4119.8,4119.1,0.012]
[1761669381086,2.42718369,4120.1,4119.1,0.012]
[1761669381262,2.42751415,4119.5,4119.1,0.012]
[1761669381894,1.5552,4119.6,4119.1,0.012]
[1761669382194,2.42764835,4119.3,4119.1,0.012]
[1761669382902,2.42753657,4119.5,4119.1,0.012]
[1761669383104,2.42756069,4119.4,4119.1,0.012]
[1761669383786,2.42754697,4119.4,4119.1,0.012]
[1761669383995,0.86651504,4119.5,4119.1,0.012]
[1761669384379,2.255,4120.0,4119.1,0.012]
[1761669384566,0.051,4120.9,4119.1,0.012]
[1761669384567,0.051,4120.9,4119.2,0.02427655]
[1761669385028,0.051,4120.9,4120.2,2.42705729]
[1761669385174,0.051,4120.9,4120.3,2.42698901]
[1761669385375,0.051,4120.9,4120.2,2.42705529]
[1761669385570,0.051,4120.9,4120.2,0.48542947]
[1761669385802,0.051,4120.9,4119.7,2.42736121]
[1761669386006,0.051,4120.9,4120.6,2.42682381]
[1761669386307,0.051,4120.9,4120.6,2.42681433]
[1761669386475,0.051,4120.9,4119.6,2.255]
[1761669386676,0.051,4120.9,4120.2,2.42701151]
[1761669386877,0.29876251,4120.9,4119.6,2.255]
[1761669387111,0.29876251,4120.9,4119.8,2.42725861]
[1761669387313,2.42678622,4120.7,4119.6,2.255]
[1761669387602,0.051,4120.9,4120.4,2.42693354]
[1761669387980,0.051,4120.9,4120.5,2.42687343]
[1761669388183,0.051,4120.9,4120.7,2.42672885]
[1761669388396,0.051,4120.9,4120.5,14.04907331]
[1761669388712,0.051,4120.9,4120.8,4.38741725]
[1761669388931,0.001,4121.3,4121.2,2.83198172]
[1761669389102,0.001,4121.3,4121.2,6.64218172]
[1761669389303,0.001,4121.3,4121.2,6.23667772]
[1761669389505,0.001,4121.3,4121.2,6.64218172]
[1761669389816,0.001,4121.3,4121.2,21.59812958]
[1761669390199,0.001,4121.3,4121.2,7.54905627]
[1761669390439,0.001,4121.3,4121.2,7.66985627]
[1761669392150,0.001,4121.3,4121.2,7.26435227]
[1761669392492,0.001,4121.3,4121.2,5.70915227]
[1761669392732,0.001,4121.3,4121.2,3.28267455]
[1761669392935,0.001,4121.3,4121.2,2.255]
[1761669393606,0.001,4121.3,4120.8,0.1208]
[1761669393807,0.001,4121.3,4120.8,2.3748]
[1761669394042,0.001,4121.3,4120.8,4.80150491]
[1761669394337,0.001,4121.3,4120.8,2.3748]
[1761669394523,0.001,4121.3,4120.9,2.42665338]
[1761669394723,0.001,4121.3,4120.8,2.3748]
[1761669394724,0.001,4121.3,4120.8,2.254]
[1761669395038,0.1208,4121.2,4120.9,2.42660191]
[1761669395346,0.001,4121.3,4121.1,2.4265366]
[1761669395502,0.001,4121.3,4121.2,2.42647772]
[1761669395918,2.42647772,4121.2,4121.1,0.1208]
[1761669396098,2.42647772,4121.2,4119.9,14.04907331]
[1761669396099,0.001,4121.3,4120.4,2.253]
[1761669396536,0.001,4121.3,4119.0,14.04907331]
[1761669396740,0.001,4121.3,4119.8,2.42726075]
[1761669396935,2.42683387,4120.6,4119.8,2.42726075]
[1761669397117,0.24383081,4121.2,4119.5,2.253]
[1761669397317,0.001,4121.3,4120.3,2.42700635]
[1761669397537,0.001,4121.3,4120.2,2.253]
[1761669397538,2.42659873,4121.0,4120.2,2.253]
[1761669397736,2.42743502,4121.3,4120.0,2.42716428]
[1761669397737,0.001,4121.3,4120.0,2.253]
[1761669397941,0.001,4121.3,4119.4,1.6052]
[1761669398114,2.42686828,4120.6,4119.7,2.42730732]
[1761669398318,2.4267836,4120.7,4119.5,2.149]
[1761669398540,2.42681649,4120.7,4119.9,2.42720885]
[1761669398947,0.001,4121.3,4119.6,0.28841045]
[1761669399319,1.5562,4121.3,4119.6,0.28841045]
[1761669399516,2.42672027,4120.8,4120.0,2.42718205]
[1761669399722,0.001,4121.3,4119.6,0.28841045]
[1761669400089,2.42688159,4120.6,4119.8,2.42729382]
[1761669400223,2.42675843,4120.8,4119.9,2.42723605]
[1761669400573,2.4265366,4121.1,4119.5,2.149]
[1761669400876,0.24383213,4121.2,4119.5,2.149]
[1761669400877,1.5552,4120.9,4119.5,2.149]
[1761669401033,1.5552,4120.7,4119.5,2.149]
[1761669401240,2.42695133,4120.4,4119.6,2.42742013]
[1761669402028,2.42701994,4120.3,4119.5,4.57647258]
[1761669402245,0.15552,4120.7,4119.5,2.149]
[1761669402564,2.42688246,4120.6,4119.5,4.57645339]
[1761669402768,2.42690157,4120.5,4119.5,4.57645339]
[1761669402975,2.42743459,4121.3,4119.5,4.57645339]
[1761669402976,0.001,4121.3,4119.5,2.149]
[1761669403264,2.42709278,4120.2,4119.5,2.149]
[1761669403470,3.98179778,4121.0,4119.5,2.149]
[1761669403649,2.42735618,4119.8,4119.5,2.149]
[1761669403871,2.253,4121.2,4119.4,0.05]
[1761669403872,2.42746756,4119.6,4119.4,0.05]
[1761669404080,1.5552,4120.3,4119.4,0.05]
[1761669404081,2.42747906,4119.5,4119.4,0.05]
[1761669404891,2.66942697,4119.5,4119.4,0.05]
[1761669407490,0.24274791,4119.5,4119.4,0.05]
[1761669407653,2.253,4119.6,4119.4,0.05]
[1761669408151,2.42724193,4120.0,4119.4,0.05]
[1761669408352,2.42736885,4119.7,4119.4,0.05]
[1761669408587,2.42737065,4119.7,4119.4,0.05]
[1761669409152,2.42732185,4119.8,4119.4,0.05]
[1761669409393,0.001,4121.3,4119.4,0.05]
[1761669409594,0.1208,4120.0,4119.6,2.42737611]
[1761669409894,0.1208,4120.0,4119.4,0.05]
[1761669410098,0.1208,4119.5,4119.4,0.05]
[1761669410250,2.54827906,4119.5,4119.4,0.05]
[1761669410456,0.1208,4119.5,4119.4,0.05]
[1761669410793,2.54827906,4119.5,4119.4,0.05]
[1761669411869,0.1208,4119.5,4119.4,0.05]
[1761669413261,2.54827906,4119.5,4119.4,0.05]
[1761669413901,2.80310697,4119.5,4119.4,0.05]
[1761669414595,4.35830697,4119.5,4119.4,0.05]
[1761669417283,6.61130697,4119.5,4119.4,0.05]
[1761669420785,4.35830697,4119.5,4119.4,0.05]
[1761669421018,6.61130697,4119.5,4119.4,0.05]
[1761669423608,4.35830697,4119.5,4119.4,0.05]
[1761669423947,6.35547906,4119.5,4119.4,0.05]
[1761669424923,3.928,4119.5,4119.4,0.05]
[1761669425304,0.1208,4119.5,4119.4,0.05]
[1761669425627,0.001,4121.3,4119.4,0.05]
[1761669425800,0.1208,4120.0,4119.4,2.47751064]
[1761669425987,0.1208,4120.0,4119.7,2.42732073]
[1761669426187,0.1218,4120.0,4119.5,2.68745917]
[1761669426382,0.1218,4120.0,4119.7,2.42732282]
[1761669426587,0.1218,4120.0,4119.5,2.68745917]
[1761669426588,0.1218,4120.0,4119.5,0.26003106]
[1761669426831,0.001,4120.0,4119.9,2.54804337]
[1761669427514,0.001,4120.0,4119.9,4.50874737]
[1761669427916,0.001,4120.0,4119.9,4.5330198]
[1761669428233,0.001,4120.4,4120.3,18.43678505]
[1761669428410,0.001,4120.4,4120.3,18.72991362]
[1761669428602,0.001,4120.4,4120.3,20.67328531]
[1761669428808,0.001,4120.4,4120.3,22.92528531]
[1761669429427,0.0002,4120.4,4120.3,22.92528531]
[1761669432473,0.0002,4120.4,4120.3,8.876212]
[1761669432636,0.0002,4120.4,4120.3,20.80958505]
[1761669433532,0.001,4121.3,4121.2,2.83198172]
[1761669433731,0.001,4121.3,4121.2,20.68725503]
[1761669433931,0.001,4121.3,4121.2,20.80805503]
[1761669436695,0.001,4121.3,4121.2,1.676]
[1761669436839,0.001,4121.3,4121.2,6.35247772]
[1761669437236,2.42741884,4121.3,4120.5,2.42684638]
[1761669437548,0.4874732,4121.3,4120.7,0.1208]
[1761669437786,0.001,4121.3,4120.8,2.4267128]
[1761669438094,0.001,4121.3,4120.7,0.1208]
[1761669438305,0.001,4121.3,4119.6,0.69490965]
[1761669438511,2.42653335,4121.2,4119.6,0.69490965]
[1761669438710,2.42687971,4120.6,4119.8,2.42729889]
[1761669438892,2.42682088,4120.7,4119.8,2.96451176]
[1761669439058,0.001,4121.3,4119.8,2.96451176]
[1761669439059,2.42673181,4120.8,4119.8,2.9645201]
[1761669439265,2.42673181,4120.8,4119.9,2.42723212]
[1761669439488,2.42676904,4120.8,4120.0,2.42718229]
[1761669439900,0.001,4121.3,4120.1,0.02427125]
[1761669440196,0.001,4121.3,4120.2,2.25]
[1761669440360,2.42674435,4120.8,4120.2,2.25]
[1761669441095,0.001,4121.3,4120.2,2.25]
[1761669441286,2.42647772,4121.2,4120.2,4.67705599]
[1761669441498,2.42659548,4121.0,4120.2,4.67705599]
[1761669441687,0.001,4121.3,4120.3,0.02427007]
[1761669441863,0.001,4121.3,4120.6,2.42678846]
[1761669442063,0.001,4121.3,4120.7,2.42674778]
[1761669442396,0.001,4121.3,4120.2,2.25]
[1761669442561,2.42665262,4121.0,4120.2,4.67705654]
[1761669442762,0.24266526,4120.9,4120.2,2.25]
[1761669443000,0.001,4121.3,4120.2,2.25]
[1761669443207,1.5552,4121.2,4120.2,2.25]
[1761669443388,3.9817193,4121.2,4120.3,2.42700774]
[1761669443586,3.9817193,4121.2,4120.2,2.25]
[1761669443587,2.42647772,4121.2,4120.4,2.42693346]
[1761669443889,0.001,4121.3,4120.2,2.25]
[1761669444088,2.42669497,4120.9,4120.2,2.25]
[1761669444286,0.001,4121.3,4120.2,2.25]
[1761669444621,0.24482985,4121.3,4120.2,2.25]
[1761669444897,2.42676629,4120.8,4120.2,2.25]
[1761669445270,2.42660995,4121.0,4120.2,2.25]
[1761669445271,0.001,4121.0,4120.2,2.25]
[1761669445474,2.4268726,4120.6,4120.2,2.25]
[1761669445892,2.42762293,4121.0,4120.2,2.25]
[1761669446129,2.42687912,4120.6,4120.2,2.25]
[1761669446471,0.001,4121.0,4120.2,2.25]
[1761669446782,0.001,4121.0,4120.3,0.02427007]
[1761669446982,0.001,4121.0,4120.2,4.67705242]
[1761669447173,2.42670249,4120.9,4120.2,4.67705242]
[1761669448295,0.1208,4120.6,4120.2,2.25]
[1761669449281,0.001,4121.0,4120.1,0.002]
[1761669449519,2.42706664,4120.2,4120.1,0.002]
[1761669453215,4.38777064,4120.2,4120.1,0.002]
[1761669453455,4.82283703,4120.2,4120.1,0.002]
[1761669453658,4.93214925,4120.2,4120.1,0.002]
[1761669453811,7.18034925,4120.2,4120.1,0.002]
[1761669454843,4.93134925,4120.2,4120.1,0.002]
[1761669455342,7.18034925,4120.2,4120.1,0.002]
[1761669455553,7.17934925,4120.2,4120.1,0.002]
[1761669455857,3.98146664,4120.2,4120.1,0.002]
[1761669456061,2.42698906,4120.4,4120.1,0.002]
[1761669456062,2.42665437,4120.9,4120.1,0.002]
[1761669456230,2.248,4120.6,4120.1,0.002]
[1761669456712,0.011,4121.4,4120.1,0.002]
[1761669457117,2.42746901,4121.3,4120.1,0.002]
[1761669457318,0.001,4121.3,4120.2,0.24291279]
[1761669457548,2.42654945,4121.1,4120.4,2.4269396]
[1761669457913,2.42652138,4121.2,4120.1,0.002]
[1761669458120,2.42760541,4121.0,4120.3,2.42700692]
[1761669458531,0.001,4121.0,4120.1,0.002]
[1761669458952,0.001,4121.0,4120.3,2.42700278]
[1761669459134,0.001,4121.0,4120.4,2.91251697]
[1761669459338,0.001,4121.0,4120.1,2.42909502]
[1761669459339,0.001,4121.0,4120.1,0.002]
[1761669459539,1.5562,4121.0,4120.1,0.002]
[1761669459738,2.4269372,4120.5,4120.1,0.002]
[1761669460041,3.98185437,4120.9,4120.1,0.002]
[1761669460238,0.1208,4120.3,4120.1,0.002]
[1761669461680,2.54782287,4120.3,4120.1,0.002]
[1761669462171,0.1208,4120.3,4120.1,0.002]
[1761669465143,2.54782035,4120.3,4120.1,0.002]
[1761669465350,0.1208,4120.3,4120.1,0.002]
[1761669465579,2.42706664,4120.2,4120.1,0.002]
[1761669465894,2.54781871,4120.3,4120.1,0.002]
[1761669466242,0.1208,4120.3,4120.1,0.002]
[1761669466861,2.42706664,4120.2,4120.1,0.002]
[1761669467153,2.54784551,4120.3,4120.1,0.002]
[1761669467383,2.42706664,4120.2,4120.1,0.002]
[1761669468175,2.92454935,4120.2,4120.1,0.002]
[1761669468407,0.49748271,4120.2,4120.1,0.002]
[1761669468606,0.1208,4120.3,4120.1,0.002]
[1761669468808,2.42706664,4120.2,4120.1,0.002]
[1761669469576,2.54782817,4120.3,4120.1,0.002]
[1761669469983,2.42706664,4120.2,4120.1,0.002]
[1761669470186,2.54785522,4120.3,4120.1,0.002]
[1761669470504,0.1208,4120.3,4120.1,0.002]
[1761669471519,2.54781357,4120.3,4120.1,0.002]
[1761669472019,0.1208,4120.3,4120.1,0.002]
[1761669472729,0.1208,4120.5,4120.1,0.002]
[1761669472885,2.54773126,4120.5,4120.1,0.002]
[1761669473080,0.1208,4120.5,4120.1,0.002]
[1761669473281,0.001,4120.6,4120.2,2.42701619]
[1761669473481,0.001,4120.6,4120.1,0.48169736]
[1761669473791,0.001,4120.6,4120.1,0.002]
[1761669474220,2.4278433,4120.6,4120.1,0.002]
[1761669474422,2.4269368,4120.5,4120.1,0.002]
[1761669474624,0.001,4120.6,4120.1,0.002]
[1761669474842,0.001,4120.6,4120.1,2.42909304]
[1761669475039,2.42705256,4120.3,4120.1,0.002]
[1761669475459,2.42706664,4120.2,4120.1,0.002]
[1761669476446,2.246,4120.5,4120.1,0.002]
[1761669476447,2.42693174,4120.5,4120.1,0.002]
[1761669476758,2.42701407,4120.3,4120.1,0.002]
[1761669477813,0.001,4120.6,4120.1,0.002]
[1761669478045,2.42706664,4120.2,4120.1,0.002]
[1761669478346,2.42626664,4120.2,4120.1,0.002]
[1761669478549,2.42694883,4120.4,4120.1,0.002]
[1761669478845,2.42697646,4120.4,4120.1,0.002]
[1761669479043,0.001,4120.6,4120.1,0.002]
[1761669479513,2.42706664,4120.2,4120.1,0.002]
[1761669480049,2.42701524,4120.3,4120.1,0.002]
[1761669480445,2.42706664,4120.2,4120.1,0.002]
[1761669481746,2.8645363,4120.2,4120.1,0.002]
[1761669481946,4.4197363,4120.2,4120.1,0.002]
[1761669482948,6.6647363,4120.2,4120.1,0.002]
[1761669485247,2.42706664,4120.2,4120.1,0.002]
[1761669485426,2.86546277,4120.2,4120.1,0.002]
[1761669485611,3.61920472,4120.2,4120.1,0.002]
[1761669490643,5.17440472,4120.2,4120.1,0.002]
[1761669492357,5.57990872,4120.2,4120.1,0.002]
[1761669494285,5.57990872,4120.2,4119.7,1e-08]
[1761669494286,2.83280629,4119.8,4119.7,1e-08]
[1761669494443,7.07040242,4119.8,4119.7,1e-08]
[1761669494648,8.02016537,4119.8,4119.7,1e-08]
[1761669495152,1.960704,4119.7,4119.3,0.002]
[1761669495374,8.02016537,4119.8,4119.3,0.002]
[1761669495375,4.38824199,4119.4,4119.3,0.002]
[1761669495653,7.07063812,4119.4,4119.3,0.002]
[1761669495850,8.02044984,4119.4,4119.3,0.002]
[1761669496192,5.77644984,4119.4,4119.3,0.002]
[1761669496359,8.02044984,4119.4,4119.3,0.002]
[1761669496560,5.77644984,4119.4,4119.3,0.002]
[1761669496765,8.01944984,4119.4,4119.3,0.002]
[1761669497754,7.61494584,4119.4,4119.3,0.002]
[1761669498052,5.37094584,4119.4,4119.3,0.002]